bitfinex-derivatives/quotes_BTCF0:USTF0_20251028
["timestamp","ask_amount","ask_price","bid_price","bid_amount"]
[1761662021467,0.11320668,115690.0,115680.0,0.3674974]
[1761662021869,0.3608,115710.0,115680.0,0.7619374]
[1761662022069,0.47131,115710.0,115700.0,0.3674974]
[1761662022478,0.47400668,115710.0,115700.0,0.3674974]
[1761662023179,0.47400668,115710.0,115700.0,0.11166]
[1761662023475,0.47400668,115710.0,115700.0,0.3674974]
[1761662023667,0.47400668,115710.0,115700.0,0.3985374]
[1761662023872,0.47700668,115710.0,115700.0,0.3684974]
[1761662025170,0.47400668,115710.0,115700.0,0.11166]
[1761662025372,0.47500668,115710.0,115700.0,0.11566]
[1761662025570,0.47500668,115710.0,115700.0,0.12735502]
[1761662026071,0.47500668,115710.0,115700.0,0.38019242]
[1761662026267,0.47500668,115710.0,115700.0,0.01269502]
[1761662026475,0.47760668,115710.0,115700.0,0.01269502]
[1761662026773,0.47760668,115710.0,115700.0,0.01569502]
[1761662028365,0.47760668,115710.0,115700.0,0.01669502]
[1761662028566,0.47760668,115710.0,115700.0,0.005]
[1761662028967,0.05291,115690.0,115680.0,0.2868774]
[1761662029174,0.11320668,115690.0,115680.0,0.3985374]
[1761662029683,0.11320668,115690.0,115680.0,0.1427]
[1761662029874,0.47400668,115690.0,115680.0,0.1427]
[1761662030074,0.47400668,115690.0,115680.0,0.41038485]
[1761662030275,0.47400668,115690.0,115680.0,0.01184745]
[1761662030471,0.11051,115670.0,115660.0,0.82827741]
[1761662030785,0.11320668,115670.0,115660.0,0.57244001]
[1761662030969,0.11320668,115670.0,115660.0,0.46747741]
[1761662031280,0.11580668,115670.0,115660.0,0.12357836]
[1761662031482,0.11320668,115670.0,115660.0,0.01191836]
[1761662031777,0.05291,115650.0,115640.0,0.7593374]
[1761662031975,0.05560668,115650.0,115640.0,0.7593374]
[1761662032182,0.11320668,115650.0,115640.0,0.7593374]
[1761662032678,0.11051,115650.0,115640.0,0.7593374]
[1761662033073,0.11320668,115650.0,115640.0,0.7593374]
[1761662033266,0.11520668,115650.0,115640.0,0.7763374]
[1761662033467,0.11520668,115650.0,115640.0,0.4271762]
[1761662033670,0.11251,115650.0,115640.0,0.7879762]
[1761662033879,0.11251,115650.0,115640.0,0.7905762]
[1761662034080,0.11251,115650.0,115640.0,0.7899762]
[1761662034677,0.11251,115650.0,115640.0,0.1422988]
[1761662034982,0.47600668,115650.0,115640.0,0.1422988]
[1761662035181,0.47600668,115650.0,115640.0,0.0306388]
[1761662035776,0.47600668,115650.0,115640.0,0.1422988]
[1761662036278,0.11520668,115650.0,115640.0,0.3981362]
[1761662036486,0.11520668,115650.0,115640.0,0.4291762]
[1761662037381,0.11520668,115650.0,115640.0,0.3981362]
[1761662037679,0.47600668,115650.0,115640.0,0.0306388]
[1761662038184,0.47600668,115650.0,115640.0,0.1422988]
[1761662038379,0.11520668,115650.0,115640.0,0.1422988]
[1761662038579,0.11520668,115650.0,115640.0,0.1714688]
[1761662038777,0.11251,115650.0,115640.0,0.4273062]
[1761662038977,0.11520668,115650.0,115640.0,0.4273062]
[1761662039486,0.11520668,115650.0,115640.0,0.3981362]
[1761662039982,0.11520668,115650.0,115640.0,0.4273062]
[1761662040188,0.11251,115650.0,115640.0,0.7881062]
[1761662040389,0.002,115650.0,115640.0,0.7907062]
[1761662040883,0.10208,115650.0,115640.0,0.7881062]
[1761662041088,0.10208,115650.0,115640.0,0.7907062]
[1761662041290,0.10477668,115650.0,115640.0,0.7881062]
[1761662041490,0.46557668,115650.0,115640.0,0.1422988]
[1761662041687,1.06817668,115650.0,115640.0,0.0306388]
[1761662041991,1.21737668,115650.0,115640.0,0.0306388]
[1761662042493,1.21477668,115650.0,115640.0,0.0306388]
[1761662042882,0.46557668,115650.0,115640.0,0.0306388]
[1761662043090,0.72401408,115650.0,115640.0,0.0306388]
[1761662043490,0.46817668,115650.0,115640.0,0.0306388]
[1761662043886,0.72401408,115650.0,115640.0,0.019]
[1761662044280,0.7213174,115650.0,115640.0,0.01630332]
[1761662044496,0.1278,115620.0,115610.0,0.1062847]
[1761662044790,0.4886,115620.0,115610.0,0.1062847]
[1761662044994,0.10008,115620.0,115610.0,0.1062847]
[1761662045191,0.10008,115620.0,115610.0,0.42385813]
[1761662045390,0.10008,115620.0,115610.0,0.3621221]
[1761662045984,0.4886,115640.0,115630.0,0.10196]
[1761662046188,0.4886,115640.0,115630.0,0.3577974]
[1761662046487,0.4886,115640.0,115630.0,0.10196]
[1761662046693,0.1278,115640.0,115630.0,0.10196]
[1761662046991,0.10008,115640.0,115630.0,0.7185974]
[1761662047292,0.10008,115640.0,115630.0,0.3577974]
[1761662048502,0.49054,115640.0,115630.0,0.05114]
[1761662048688,0.49054,115640.0,115630.0,0.09781]
[1761662048993,0.0936,115630.0,115620.0,0.09271]
[1761662049194,0.0936,115630.0,115620.0,0.15444603]
[1761662049398,0.0936,115630.0,115620.0,0.09271]
[1761662049789,0.4544,115630.0,115620.0,0.04604]
[1761662049992,0.12326,115620.0,115610.0,0.07774489]
[1761662050193,0.48406,115620.0,115610.0,0.01600886]
[1761662050392,0.48406,115620.0,115610.0,0.06204886]
[1761662050593,0.48406,115620.0,115610.0,0.10871886]
[1761662050793,0.48406,115620.0,115610.0,0.17045489]
[1761662050994,0.48406,115620.0,115610.0,0.07774489]
[1761662051195,0.48406,115620.0,115610.0,0.17045489]
[1761662052994,0.49106,115620.0,115610.0,0.17245489]
[1761662053498,0.49106,115620.0,115610.0,0.12378489]
[1761662053499,0.48406,115620.0,115610.0,0.12378489]
[1761662053699,0.49306,115620.0,115610.0,0.12678489]
[1761662053900,0.49306,115620.0,115610.0,0.17345489]
[1761662055101,0.49306,115620.0,115610.0,0.11171886]
[1761662055297,0.48406,115620.0,115610.0,0.06204886]
[1761662055603,0.49106,115620.0,115610.0,0.11071886]
[1761662055784,0.49106,115620.0,115610.0,0.06204886]
[1761662055989,0.49306,115620.0,115610.0,0.06504886]
[1761662056191,0.49306,115620.0,115610.0,0.11171886]
[1761662056494,0.49306,115620.0,115610.0,0.10871886]
[1761662056691,0.49106,115620.0,115610.0,0.11071886]
[1761662057294,0.49306,115620.0,115610.0,0.01900886]
[1761662057702,0.49306,115620.0,115610.0,0.19822076]
[1761662058400,0.4634,115620.0,115610.0,0.45665816]
[1761662058586,0.4634,115620.0,115610.0,0.45405816]
[1761662059302,0.49306,115620.0,115610.0,0.19822076]
[1761662059602,0.13226,115620.0,115610.0,0.19822066]
[1761662059790,0.009,115620.0,115610.0,0.81756261]
[1761662059990,0.009,115620.0,115610.0,0.87929864]
[1761662060302,0.009,115620.0,115610.0,0.98112602]
[1761662060802,0.05616,115620.0,115610.0,0.98112602]
[1761662061103,0.009,115620.0,115610.0,0.98112602]
[1761662061295,0.1026,115620.0,115610.0,0.98112602]
[1761662061491,0.13226,115620.0,115610.0,0.12678489]
[1761662061700,0.13226,115620.0,115610.0,0.15155066]
[1761662061901,0.13226,115620.0,115610.0,0.11171886]
[1761662062099,0.49306,115620.0,115610.0,0.11171886]
[1761662062391,0.49306,115620.0,115610.0,0.01900886]
[1761662062594,0.85082933,115620.0,115610.0,0.00596556]
[1761662062791,1.45342933,115620.0,115610.0,0.00309043]
[1761662063194,1.45342933,115620.0,115610.0,0.01572876]
[1761662063498,1.45342933,115620.0,115610.0,0.00309043]
[1761662065099,0.85342933,115620.0,115610.0,0.00309043]
[1761662065705,1.00262933,115620.0,115610.0,0.00309043]
[1761662068212,0.09098,115610.0,115600.0,0.01254498]
[1761662068503,0.26698,115600.0,115590.0,9.792e-05]
[1761662068692,0.63038,115600.0,115590.0,9.792e-05]
[1761662069303,0.11735,115580.0,115570.0,0.06346223]
[1761662069505,0.09146,115570.0,115540.0,0.07717004]
[1761662069705,0.45226,115550.0,115540.0,0.19081004]
[1761662070004,0.45226,115550.0,115540.0,0.20324202]
[1761662070196,0.45232803,115550.0,115540.0,0.20584202]
[1761662070396,0.45232803,115550.0,115540.0,0.10260198]
[1761662070603,0.45232803,115550.0,115540.0,0.12867198]
[1761662070992,0.45232803,115550.0,115540.0,0.12967198]
[1761662071402,0.45232803,115550.0,115540.0,0.10360198]
[1761662071709,0.45232803,115550.0,115540.0,0.12967198]
[1761662072604,0.45232803,115550.0,115540.0,0.13227198]
[1761662073109,0.45532803,115550.0,115540.0,0.13067198]
[1761662073297,0.45532803,115550.0,115540.0,0.12907198]
[1761662073497,0.45532803,115550.0,115540.0,0.13167198]
[1761662073908,0.45532803,115550.0,115540.0,0.12907198]
[1761662074295,0.45792803,115550.0,115540.0,0.01543198]
[1761662075911,0.45532803,115550.0,115540.0,0.13427198]
[1761662076403,0.45532803,115550.0,115540.0,0.13167198]
[1761662076811,0.45532803,115550.0,115540.0,0.13427198]
[1761662077012,0.44126255,115550.0,115540.0,0.13427198]
[1761662077310,0.44126255,115550.0,115540.0,0.21144202]
[1761662078502,0.44126255,115550.0,115540.0,0.20884202]
[1761662078905,0.44126255,115550.0,115540.0,0.13167198]
[1761662079211,0.44126255,115550.0,115540.0,0.22082618]
[1761662079612,0.44126255,115550.0,115540.0,0.13167198]
[1761662081915,0.36386803,115550.0,115540.0,0.22082608]
[1761662082104,0.36386803,115550.0,115540.0,0.57859541]
[1761662082105,0.45532803,115550.0,115540.0,0.57859541]
[1761662082305,0.36386803,115550.0,115540.0,0.57659541]
[1761662082505,0.36386803,115550.0,115540.0,0.57859541]
[1761662082700,0.36386803,115550.0,115540.0,0.22082608]
[1761662082916,0.36386803,115550.0,115540.0,0.57859541]
[1761662083214,0.00306803,115550.0,115540.0,0.57859541]
[1761662086315,0.04914803,115550.0,115540.0,0.57599541]
[1761662086508,0.04914803,115550.0,115540.0,0.57859541]
[1761662086509,0.00306803,115550.0,115540.0,0.57859541]
[1761662088416,0.00306803,115550.0,115540.0,0.93939541]
[1761662088621,0.00046803,115550.0,115540.0,0.93679541]
[1761662092825,0.3608,115580.0,115570.0,0.04425]
[1761662093118,0.45226,115580.0,115570.0,0.2027724]
[1761662093318,0.09146,115580.0,115570.0,0.2001724]
[1761662093822,0.45226,115590.0,115580.0,0.08757]
[1761662094023,0.45226,115590.0,115580.0,0.11364]
[1761662094323,0.45226,115590.0,115580.0,0.2001649]
[1761662095418,0.46326,115590.0,115580.0,0.2031649]
[1761662095614,0.46326,115590.0,115580.0,0.11664]
[1761662095820,0.48528823,115590.0,115580.0,0.11364]
[1761662096127,0.48028823,115590.0,115580.0,0.11564]
[1761662096715,0.48028823,115590.0,115580.0,0.2021649]
[1761662097523,0.02802823,115590.0,115580.0,0.63321051]
[1761662097829,0.006,115590.0,115580.0,0.63321051]
[1761662098022,0.005,115590.0,115580.0,0.99401051]
[1761662098230,0.1542,115590.0,115580.0,0.99401051]
[1761662099023,0.005,115590.0,115580.0,0.99401051]
[1761662100921,0.005,115590.0,115580.0,1.05585694]
[1761662103433,0.005,115590.0,115580.0,1.65585694]
[1761662103626,0.39901,115620.0,115610.0,0.2005024]
[1761662103817,0.43722,115620.0,115610.0,0.2005024]
[1761662105130,0.53302,115620.0,115610.0,0.2031024]
[1761662105331,0.49481,115620.0,115610.0,0.56087173]
[1761662105825,0.50781,115620.0,115610.0,0.56387173]
[1761662106337,0.4696,115620.0,115610.0,0.56387173]
[1761662106543,0.1088,115620.0,115610.0,0.56387173]
[1761662106830,0.1078,115620.0,115610.0,0.92567173]
[1761662107639,0.0958,115620.0,115610.0,0.92267173]
[1761662107840,0.0978,115620.0,115610.0,0.92467173]
[1761662108138,0.0978,115620.0,115610.0,0.92207173]
[1761662108334,0.0958,115620.0,115610.0,0.92007173]
[1761662108536,0.0958,115620.0,115610.0,0.92707173]
[1761662108537,0.0978,115620.0,115610.0,0.92707173]
[1761662109034,0.0978,115620.0,115610.0,0.92267173]
[1761662109035,0.0958,115620.0,115610.0,0.92267173]
[1761662109244,0.0978,115620.0,115610.0,0.92767173]
[1761662109941,0.53903,115640.0,115630.0,0.08525]
[1761662110640,0.53903,115640.0,115630.0,0.10998]
[1761662111535,0.53903,115640.0,115630.0,0.1964675]
[1761662111837,0.53903,115640.0,115630.0,0.10998]
[1761662112240,0.53903,115640.0,115630.0,0.55423683]
[1761662112241,0.17823,115640.0,115630.0,0.55423683]
[1761662112429,0.13851,115640.0,115630.0,0.55683683]
[1761662112629,0.13851,115640.0,115630.0,0.55423683]
[1761662112830,0.0065,115640.0,115630.0,0.55883683]
[1761662113137,0.0065,115640.0,115630.0,0.98905821]
[1761662113441,0.3608,115660.0,115650.0,0.1944225]
[1761662113647,0.44024,115670.0,115660.0,0.194415]
[1761662114140,0.44024,115670.0,115660.0,0.10795]
[1761662114337,0.44024,115670.0,115660.0,0.194415]
[1761662115040,0.44624,115670.0,115660.0,0.196415]
[1761662115835,0.44624,115670.0,115660.0,0.04498]
[1761662116038,0.44884,115670.0,115660.0,0.08322]
[1761662116343,0.44224,115670.0,115660.0,0.11195]
[1761662116948,0.44484,115670.0,115660.0,0.11195]
[1761662117326,0.44324,115670.0,115660.0,0.11195]
[1761662117527,0.44324,115670.0,115660.0,0.08722]
[1761662117738,0.44584,115670.0,115660.0,0.11195]
[1761662118144,0.44484,115670.0,115660.0,0.11195]
[1761662118441,0.80260933,115670.0,115660.0,0.004]
[1761662118647,0.82470046,115670.0,115660.0,0.004]
[1761662119142,0.07944,115630.0,115620.0,0.04298]
[1761662119338,0.07944,115620.0,115610.0,0.1944524]
[1761662119737,0.07944,115620.0,115610.0,0.20641839]
[1761662120136,0.07944,115620.0,115610.0,0.46234189]
[1761662120535,0.07944,115620.0,115610.0,0.46494189]
[1761662121046,0.002,115630.0,115620.0,0.169715]
[1761662121345,0.002,115630.0,115620.0,0.7890385]
[1761662121829,0.002,115630.0,115620.0,0.4282385]
[1761662122147,0.44024,115640.0,115630.0,0.1697075]
[1761662122334,0.44024,115640.0,115630.0,0.3391435]
[1761662122940,0.44024,115640.0,115630.0,0.08322]
[1761662123431,0.44024,115640.0,115630.0,0.4282311]
[1761662123631,0.44024,115650.0,115640.0,0.08322]
[1761662123944,0.44024,115650.0,115640.0,0.4282236]
[1761662124250,0.03972,115650.0,115640.0,0.4256236]
[1761662124636,0.03972,115650.0,115640.0,0.4282236]
[1761662124836,0.44024,115660.0,115650.0,0.08322]
[1761662125037,0.44024,115660.0,115650.0,0.3417435]
[1761662125442,0.44024,115660.0,115650.0,0.3391435]
[1761662126242,0.44024,115660.0,115650.0,0.3411435]
[1761662126243,0.44624,115660.0,115650.0,0.3411435]
[1761662126452,0.006,115660.0,115650.0,0.4302162]
[1761662126748,0.006,115660.0,115650.0,0.7910162]
[1761662128550,0.007,115660.0,115650.0,0.7910162]
[1761662128849,0.007,115660.0,115650.0,0.7890162]
[1761662129051,0.003,115660.0,115650.0,0.7920162]
[1761662129641,0.002,115660.0,115650.0,0.7900162]
[1761662129845,0.43634,115680.0,115670.0,0.08225]
[1761662130041,0.45826344,115680.0,115670.0,0.4246312]
[1761662130646,0.45826344,115680.0,115670.0,0.1687077]
[1761662130842,0.45826344,115680.0,115670.0,0.4246312]
[1761662132645,0.46026344,115680.0,115670.0,0.4276312]
[1761662133051,0.38922344,115680.0,115670.0,0.4302312]
[1761662133246,0.02842344,115680.0,115670.0,0.7910312]
[1761662133852,0.02842344,115680.0,115670.0,0.4302312]
[1761662135153,0.02842344,115680.0,115670.0,0.7910312]
[1761662137552,0.02842344,115680.0,115670.0,0.8774803]
[1761662139447,0.02330274,115700.0,115690.0,0.1687526]
[1761662139651,0.02330274,115700.0,115690.0,0.3382335]
[1761662139953,0.46542274,115700.0,115690.0,0.08231]
[1761662140157,0.46542274,115700.0,115690.0,0.1687526]
[1761662140354,0.46542274,115700.0,115690.0,0.4246761]
[1761662140655,0.46542274,115700.0,115690.0,0.3382335]
[1761662140852,0.46542274,115700.0,115690.0,0.4246761]
[1761662141757,0.47042274,115700.0,115690.0,0.4266761]
[1761662142157,0.46642274,115700.0,115690.0,0.4246761]
[1761662142349,0.46842274,115700.0,115690.0,0.4286761]
[1761662142556,0.46742274,115700.0,115690.0,0.4527561]
[1761662143051,0.46742274,115700.0,115690.0,0.3663135]
[1761662143557,0.46742274,115700.0,115690.0,0.4527561]
[1761662143754,0.46742274,115700.0,115690.0,0.3663135]
[1761662143950,0.46742274,115700.0,115690.0,0.46438386]
[1761662144357,0.46742274,115700.0,115690.0,0.31459126]
[1761662144557,0.46742274,115700.0,115690.0,0.09793776]
[1761662144754,0.46742274,115700.0,115690.0,0.20846036]
[1761662145059,0.46742274,115700.0,115690.0,0.46438386]
[1761662146648,0.46742274,115700.0,115690.0,0.37794126]
[1761662146849,0.46742274,115700.0,115690.0,0.46438386]
[1761662147849,0.46742274,115700.0,115690.0,0.37794126]
[1761662148047,0.75374321,115700.0,115690.0,0.01562776]
[1761662148243,0.08132,115670.0,115660.0,0.26299832]
[1761662148447,0.08132,115670.0,115660.0,0.51892182]
[1761662148644,0.44212,115670.0,115660.0,0.43245692]
[1761662148954,0.44212,115670.0,115660.0,0.51892192]
[1761662149359,0.44212,115680.0,115670.0,0.1687675]
[1761662149658,0.44212,115680.0,115670.0,0.424691]
[1761662149953,0.44212,115680.0,115670.0,0.08231]
[1761662150159,0.44212,115680.0,115670.0,0.09433364]
[1761662150858,0.44472,115680.0,115670.0,0.09433364]
[1761662151055,0.46387,115680.0,115670.0,0.09433364]
[1761662151560,0.46629345,115680.0,115670.0,0.09433364]
[1761662151761,0.46369345,115680.0,115670.0,0.09433364]
[1761662151964,0.46869345,115680.0,115670.0,0.09633364]
[1761662153862,0.56449345,115680.0,115670.0,0.09633364]
[1761662154659,0.56449345,115680.0,115670.0,0.43871434]
[1761662155664,0.56449345,115680.0,115670.0,0.20687084]
[1761662155960,0.56449345,115680.0,115670.0,0.46279434]
[1761662156464,0.56449345,115680.0,115670.0,0.37633714]
[1761662157254,0.56449345,115680.0,115670.0,0.12041364]
[1761662157861,0.56449345,115680.0,115670.0,0.37633714]
[1761662158564,0.56449345,115680.0,115670.0,0.46279434]
[1761662159758,0.12237345,115680.0,115670.0,0.46279434]
[1761662159959,0.12237345,115680.0,115670.0,0.46539434]
[1761662160660,0.005,115680.0,115670.0,0.82619434]
[1761662160852,0.005,115680.0,115670.0,0.91264344]
[1761662161053,0.43785,115710.0,115700.0,0.09935]
[1761662161666,0.08698,115700.0,115690.0,0.06187032]
[1761662161967,0.08845,115680.0,115670.0,0.01602364]
[1761662162156,0.09105,115680.0,115670.0,0.01702364]
[1761662162356,0.09105,115680.0,115670.0,0.01302364]
[1761662162357,0.81265,115680.0,115670.0,0.01302364]
[1761662163172,1.0685735,115680.0,115670.0,0.01302364]
[1761662163775,0.07705,115660.0,115650.0,0.06187032]
[1761662163964,0.43785,115660.0,115650.0,0.09920032]
[1761662164569,1.0571735,115660.0,115650.0,0.06187032]
[1761662164863,0.07705,115650.0,115640.0,0.06187032]
[1761662165067,0.6963735,115650.0,115640.0,0.06187032]
[1761662165264,0.6963735,115650.0,115630.0,0.13904036]
[1761662165563,0.7034935,115640.0,115630.0,0.06187032]
[1761662165773,0.44757,115640.0,115630.0,0.06187032]
[1761662166271,0.44757,115640.0,115630.0,0.07393872]
[1761662166567,0.07705,115630.0,115620.0,0.06187032]
[1761662166869,0.6963735,115630.0,115620.0,0.06187032]
[1761662167474,0.6963735,115630.0,115620.0,0.00539032]
[1761662167968,1.1383735,115630.0,115620.0,0.01239032]
[1761662168365,1.04245,115630.0,115620.0,0.01339032]
[1761662168571,0.43985,115630.0,115620.0,0.06619032]
[1761662169166,0.43985,115630.0,115620.0,0.10127032]
[1761662169371,0.43985,115630.0,115620.0,0.03323032]
[1761662169969,0.44245,115630.0,115620.0,0.01339032]
[1761662170568,0.6983735,115630.0,115620.0,0.01339032]
[1761662170969,0.44245,115630.0,115620.0,0.008]
[1761662171271,0.6983735,115630.0,115620.0,0.008]
[1761662171766,0.6387235,115630.0,115610.0,0.0043247]
[1761662171966,0.3634,115620.0,115610.0,0.0043247]
[1761662172163,0.6193235,115620.0,115610.0,0.0043247]
[1761662172660,0.6493235,115620.0,115590.0,0.07725683]
[1761662172865,0.9775235,115600.0,115590.0,0.07737243]
[1761662173062,0.96606266,115600.0,115590.0,0.07737243]
[1761662173676,0.96606266,115600.0,115590.0,8.679e-05]
[1761662174375,0.96806266,115600.0,115590.0,0.00208679]
[1761662174674,0.96806266,115600.0,115590.0,0.07937243]
[1761662175475,0.96806266,115600.0,115590.0,0.00208679]
[1761662178267,0.71213916,115600.0,115590.0,0.07012679]
[1761662178472,0.70953916,115600.0,115590.0,0.14741243]
[1761662178774,0.96806266,115600.0,115590.0,0.14741243]
[1761662178975,0.96546266,115600.0,115590.0,0.14741243]
[1761662179172,0.96806266,115600.0,115590.0,0.07012679]
[1761662179580,0.96806266,115600.0,115590.0,0.03504679]
[1761662179870,0.96826003,115600.0,115590.0,0.03504679]
[1761662180166,0.96566003,115600.0,115590.0,0.03504679]
[1761662180374,0.70953916,115600.0,115590.0,0.03504679]
[1761662180566,0.70953916,115600.0,115590.0,0.15664319]
[1761662180776,0.70953916,115600.0,115590.0,0.62538305]
[1761662180974,0.3608,115610.0,115600.0,0.174389]
[1761662181166,0.3608,115610.0,115600.0,0.1650742]
[1761662181366,0.3608,115610.0,115600.0,0.0970342]
[1761662181576,0.7216,115610.0,115600.0,0.1299942]
[1761662181777,0.7242,115610.0,115600.0,0.1299942]
[1761662181967,0.7216,115610.0,115600.0,0.1650742]
[1761662182277,0.7216,115610.0,115600.0,0.08788]
[1761662183073,0.7226,115610.0,115600.0,0.08788]
[1761662183277,0.7226,115610.0,115600.0,0.174389]
[1761662183667,0.71454133,115610.0,115600.0,0.176389]
[1761662184468,0.71454133,115610.0,115600.0,0.08988]
[1761662184675,0.71354133,115610.0,115600.0,0.08988]
[1761662184874,0.70954133,115610.0,115600.0,0.36267491]
[1761662185063,0.70954133,115610.0,115600.0,0.36527491]
[1761662185268,0.70954133,115610.0,115600.0,0.20151806]
[1761662185463,0.70954133,115610.0,115600.0,0.19891806]
[1761662185874,0.70954133,115610.0,115600.0,0.27617017]
[1761662186075,0.70954133,115610.0,115600.0,0.16813211]
[1761662186879,0.3628,115610.0,115600.0,0.16813211]
[1761662187483,0.3628,115610.0,115600.0,0.25464111]
[1761662188875,0.3628,115610.0,115600.0,0.61274291]
[1761662189081,0.3608,115630.0,115620.0,0.08952]
[1761662189274,0.3608,115630.0,115620.0,0.15129922]
[1761662189981,0.3608,115640.0,115620.0,0.15129922]
[1761662190370,0.001,115630.0,115620.0,0.15129922]
[1761662190571,0.006,115630.0,115620.0,0.15329922]
[1761662191071,0.3618,115640.0,115630.0,0.0696]
[1761662191272,0.3698,115640.0,115630.0,0.13137922]
[1761662191676,0.3698,115640.0,115630.0,0.22046572]
[1761662191978,0.001,115640.0,115630.0,0.59673861]
[1761662192479,0.001,115640.0,115630.0,0.59684502]
[1761662193175,0.3608,115660.0,115650.0,0.0696]
[1761662193371,0.7189018,115670.0,115650.0,0.0696]
[1761662193571,0.7215018,115670.0,115650.0,0.0696]
[1761662193972,0.3608,115660.0,115640.0,0.23788822]
[1761662194482,0.3608,115660.0,115650.0,0.0696]
[1761662194984,0.7229018,115670.0,115650.0,0.13348932]
[1761662195380,0.3648,115670.0,115660.0,0.08952]
[1761662195574,0.3608,115670.0,115660.0,0.08952]
[1761662195886,0.3618,115670.0,115660.0,0.08952]
[1761662196073,0.3618,115670.0,115660.0,0.1021349]
[1761662197389,0.7199018,115670.0,115660.0,0.0325349]
[1761662197579,0.7265018,115670.0,115660.0,0.0325349]
[1761662197978,0.3658,115670.0,115660.0,0.0325349]
[1761662198275,0.7219018,115670.0,115660.0,0.0355349]
[1761662198877,0.7199018,115670.0,115660.0,0.0325349]
[1761662199079,0.7239018,115670.0,115660.0,0.0345349]
[1761662199483,0.7265018,115670.0,115660.0,0.0345349]
[1761662200071,0.7255018,115670.0,115660.0,0.002]
[1761662200875,0.7265018,115670.0,115660.0,0.002]
[1761662202084,0.3684,115670.0,115660.0,0.002]
[1761662202277,0.7265018,115670.0,115660.0,0.002]
[1761662205383,1.3265018,115670.0,115660.0,0.002]
[1761662208487,0.9684,115670.0,115660.0,0.002]
[1761662208685,1.3265018,115670.0,115660.0,0.002]
[1761662208985,0.3658,115670.0,115660.0,0.09152]
[1761662210285,0.3684,115670.0,115660.0,0.09152]
[1761662211581,0.7239018,115670.0,115660.0,0.09152]
[1761662212192,0.7239018,115670.0,115660.0,0.002]
[1761662212380,0.3910526,115670.0,115660.0,0.002]
[1761662212683,0.7491544,115670.0,115660.0,0.02192]
[1761662213177,0.7491544,115670.0,115660.0,0.05548]
[1761662213987,0.7491544,115670.0,115660.0,0.02192]
[1761662214886,0.7265018,115670.0,115660.0,0.02192]
[1761662215278,0.74916354,115670.0,115660.0,0.09152]
[1761662215686,0.74916354,115670.0,115660.0,0.02192]
[1761662215889,0.7265018,115670.0,115660.0,0.02192]
[1761662216081,0.74916362,115670.0,115660.0,0.002]
[1761662216584,0.79916362,115670.0,115660.0,0.002]
[1761662217481,0.79904293,115670.0,115660.0,0.002]
[1761662220083,0.74644293,115670.0,115660.0,0.05455]
[1761662220286,0.74644293,115670.0,115660.0,0.002]
[1761662220483,0.74904293,115670.0,115660.0,0.002]
[1761662220990,0.75904293,115670.0,115660.0,0.002]
[1761662221191,0.75904293,115670.0,115640.0,0.03261764]
[1761662221388,0.7189018,115650.0,115620.0,0.02001]
[1761662221589,0.7189018,115630.0,115610.0,0.05255]
[1761662221791,0.3581018,115630.0,115610.0,0.02001]
[1761662222088,0.0026,115620.0,115600.0,0.16411852]
[1761662222293,0.3581018,115610.0,115600.0,0.09736852]
[1761662222497,0.7215018,115610.0,115600.0,0.07735852]
[1761662222797,0.7215018,115610.0,115590.0,0.16420531]
[1761662222998,0.3608,115610.0,115600.0,0.06675]
[1761662224294,0.3638,115610.0,115600.0,0.09037556]
[1761662225199,0.3664,115610.0,115600.0,0.09037556]
[1761662225588,0.3638,115610.0,115600.0,0.11038556]
[1761662225790,0.3638,115610.0,115600.0,0.11138556]
[1761662228003,0.3638,115610.0,115600.0,0.09876]
[1761662228299,0.3638,115610.0,115600.0,0.03201]
[1761662228593,0.3638,115610.0,115600.0,0.09897]
[1761662228994,0.3664,115610.0,115600.0,0.06516]
[1761662229391,0.3638,115610.0,115600.0,0.06516]
[1761662229594,0.3638,115610.0,115600.0,0.09897]
[1761662233796,0.3638,115610.0,115600.0,0.10157]
[1761662234100,0.003,115610.0,115600.0,0.5488785]
[1761662234306,0.3608,115630.0,115620.0,0.08575]
[1761662235399,0.3608,115640.0,115630.0,0.06696]
[1761662235701,0.3608,115650.0,115640.0,0.08575]
[1761662236495,0.3608,115650.0,115640.0,0.09804152]
[1761662237902,0.3628,115650.0,115640.0,0.10304152]
[1761662238893,0.002,115650.0,115640.0,0.10304152]
[1761662239096,0.002,115650.0,115640.0,0.19212042]
[1761662239300,0.003,115650.0,115640.0,0.55292042]
[1761662239502,0.003,115650.0,115640.0,0.10564152]
[1761662239709,0.72165826,115650.0,115640.0,0.03608152]
[1761662240006,0.72425826,115650.0,115640.0,0.02379]
[1761662240208,0.62235728,115650.0,115640.0,0.02379]
[1761662241798,0.61975728,115650.0,115640.0,0.05694]
[1761662241999,0.3664,115650.0,115640.0,0.09075]
[1761662242203,0.3638,115650.0,115640.0,0.09075]
[1761662243104,0.61975728,115650.0,115640.0,0.09075]
[1761662243814,0.3638,115650.0,115640.0,0.09075]
[1761662245207,0.64248311,115650.0,115640.0,0.09075]
[1761662245402,0.64508311,115650.0,115640.0,0.005]
[1761662245608,1.27508311,115650.0,115640.0,0.005]
[1761662246110,1.75248311,115650.0,115610.0,0.01879]
[1761662246417,0.61675728,115620.0,115600.0,0.06523935]
[1761662246615,0.25595728,115610.0,115600.0,0.06523935]
[1761662246914,0.25855728,115610.0,115600.0,0.05194]
[1761662247123,0.25595728,115610.0,115600.0,0.05194]
[1761662247304,0.3634,115620.0,115600.0,0.08575]
[1761662247505,0.61675728,115620.0,115610.0,0.03815]
[1761662247709,0.61675728,115620.0,115610.0,0.005]
[1761662248210,0.003,115610.0,115600.0,0.06694]
[1761662248515,0.25895728,115610.0,115600.0,0.06694]
[1761662248719,0.25895728,115610.0,115600.0,0.10075]
[1761662249217,0.003,115610.0,115600.0,0.10075]
[1761662249419,0.003,115610.0,115600.0,0.10175]
[1761662249817,0.61675728,115620.0,115600.0,0.08675]
[1761662250009,0.61975728,115620.0,115610.0,0.006]
[1761662250616,0.003,115610.0,115600.0,0.0918]
[1761662250809,0.61975728,115610.0,115600.0,0.0918]
[1761662251211,0.61675728,115610.0,115600.0,0.0858]
[1761662251612,0.61675728,115610.0,115600.0,0.1723102]
[1761662251915,0.3608,115610.0,115600.0,0.0858]
[1761662252309,0.61975728,115620.0,115600.0,0.1723102]
[1761662252515,0.61975728,115620.0,115610.0,0.08371]
[1761662253120,0.61675728,115620.0,115610.0,0.08371]